bitfinex/quotes_SOLUSD_20250726
["timestamp","ask_amount","ask_price","bid_price","bid_amount"]
[1753530371660,43.82397076,187.83,187.8,0.06]
[1753530373951,37.82,187.83,187.8,0.78]
[1753530374137,43.8240563,187.83,187.8,0.06]
[1753530375454,0.68,187.82,187.8,0.06]
[1753530376153,43.1440563,187.83,187.8,0.06]
[1753530376154,5.36962807,187.81,187.8,0.06]
[1753530378057,36.69415818,187.81,187.8,0.06]
[1753530378363,44.22796905,187.81,187.8,0.06]
[1753530379837,82.04796905,187.81,187.8,0.06]
[1753530380162,56.04796905,187.81,187.8,0.06]
[1753530381260,52.08274746,187.81,187.8,0.06]
[1753530381584,48.51415818,187.81,187.8,0.06]
[1753530381961,10.69415818,187.81,187.8,0.06]
[1753530382151,48.51415818,187.81,187.8,0.06]
[1753530382656,10.69415818,187.81,187.8,0.06]
[1753530382838,48.51415818,187.81,187.8,0.06]
[1753530383865,56.03494417,187.81,187.8,0.06]
[1753530384364,52.07734613,187.81,187.8,0.06]
[1753530384565,56.03400096,187.81,187.8,0.06]
[1753530387165,14.25734613,187.81,187.8,0.06]
[1753530387366,48.49415818,187.81,187.8,0.06]
[1753530387550,52.05734613,187.81,187.8,0.06]
[1753530388549,48.49415818,187.81,187.8,0.06]
[1753530390652,56.00457452,187.81,187.8,0.06]
[1753530392770,52.05271742,187.81,187.8,0.06]
[1753530393350,48.49415818,187.81,187.8,0.06]
[1753530393576,52.05240459,187.81,187.8,0.06]
[1753530394072,48.49415818,187.81,187.8,0.06]
[1753530394579,48.49415818,187.81,187.78,0.06]
[1753530394580,24.54708397,187.8,187.78,0.06]
[1753530394763,30.1592929,187.77,187.76,0.06]
[1753530394962,67.9592929,187.77,187.76,0.06]
[1753530395473,30.1592929,187.77,187.76,0.06]
[1753530395673,69.16962807,187.77,187.76,0.06]
[1753530395872,64.33033517,187.77,187.76,0.06]
[1753530396774,69.65599954,187.77,187.76,0.06]
[1753530399478,31.85599954,187.77,187.76,0.78]
[1753530399675,69.12566437,187.77,187.76,0.78]
[1753530399877,5.85579346,187.78,187.76,0.78]
[1753530400071,37.8,187.77,187.76,0.78]
[1753530400380,37.8,187.77,187.76,0.06]
[1753530400762,37.8,187.77,187.76,0.78]
[1753530401287,0.53033517,187.82,187.76,4.9392929]
[1753530401491,0.53033517,187.81,187.77,4.8792929]
[1753530401787,26.0,187.8,187.78,4.8792929]
[1753530402085,26.0,187.8,187.79,0.72]
[1753530406685,37.78,187.82,187.79,0.72]
[1753530406985,26.0,187.8,187.79,0.72]
[1753530407187,26.0,187.8,187.78,4.1592929]
[1753530407374,37.78,187.82,187.78,4.1592929]
[1753530407862,26.0,187.8,187.79,0.72]
[1753530408063,26.0,187.8,187.78,4.1592929]
[1753530408774,26.0,187.8,187.79,0.72]
[1753530409494,37.78,187.82,187.79,0.72]
[1753530409677,37.78,187.82,187.78,4.1592929]
[1753530409877,37.78,187.82,187.8,0.72]
[1753530411285,37.78,187.83,187.8,0.72]
[1753530412772,38.47,187.83,187.8,0.72]
[1753530413395,37.78,187.83,187.8,0.72]
[1753530414396,43.79403704,187.83,187.8,0.72]
[1753530414772,43.79403704,187.83,187.78,4.8792929]
[1753530414964,43.79403704,187.83,187.79,0.72]
[1753530416997,0.69,187.82,187.79,0.72]
[1753530418977,43.10403704,187.83,187.78,4.1592929]
[1753530419276,0.69,187.82,187.78,4.8792929]
[1753530419480,0.69,187.82,187.78,4.1592929]
[1753530419685,0.69,187.82,187.79,0.72]
[1753530420400,0.69,187.81,187.78,4.1592929]
[1753530420585,5.32428602,187.82,187.78,4.8792929]
[1753530420784,6.01428602,187.82,187.78,4.8792929]
[1753530421894,43.13962807,187.81,187.76,87.46]
[1753530422101,4.8492929,187.8,187.76,0.06]
[1753530422595,30.1592929,187.77,187.76,0.06]
[1753530422771,67.8992929,187.77,187.76,0.06]
[1753530423101,68.5892929,187.77,187.76,0.06]
[1753530424199,73.91495727,187.77,187.76,0.06]
[1753530425295,36.17495727,187.77,187.76,0.06]
[1753530425501,73.91495727,187.77,187.76,0.06]
[1753530426002,69.75566437,187.77,187.76,0.06]
[1753530426401,73.91495727,187.77,187.76,0.06]
[1753530432402,36.17495727,187.77,187.76,0.06]
[1753530432712,73.91495727,187.77,187.76,0.06]
[1753530434307,36.17495727,187.77,187.76,0.06]
[1753530434614,73.91495727,187.77,187.76,0.06]
[1753530436119,36.17495727,187.77,187.76,0.06]
[1753530436288,73.91495727,187.77,187.76,0.06]
[1753530444694,74.44529244,187.77,187.76,0.06]
[1753530445597,73.20495727,187.77,187.76,0.74]
[1753530445920,73.20495727,187.77,187.76,0.06]
[1753530450626,83.02982531,187.77,187.71,0.06]
[1753530450832,8.3185858,187.72,187.7,0.06]
[1753530451127,8.3185858,187.72,187.62,0.68]
[1753530451128,26.0,187.68,187.62,0.68]
[1753530451302,4.1592929,187.63,187.62,0.68]
[1753530451501,4.1592929,187.63,187.6,7.073]
[1753530451738,4.1592929,187.62,187.61,0.74]
[1753530451902,26.53033517,187.64,187.61,0.74]
[1753530452103,4.1592929,187.62,187.61,0.74]
[1753530452512,47.60899981,187.63,187.61,0.74]
[1753530452711,43.44970691,187.63,187.61,0.74]
[1753530452927,30.1592929,187.64,187.61,0.06]
[1753530453128,38.12,187.65,187.62,0.68]
[1753530453336,0.53033517,187.66,187.64,4.1592929]
[1753530453517,38.12,187.73,187.65,4.8392929]
[1753530453721,38.65033517,187.72,187.67,4.1592929]
[1753530453913,38.65033517,187.72,187.68,0.68]
[1753530454104,64.65033517,187.72,187.69,0.68]
[1753530454312,64.65033517,187.72,187.67,0.68]
[1753530454313,65.32033517,187.72,187.67,0.68]
[1753530454611,65.32033517,187.72,187.63,6.193]
[1753530454612,5.32736668,187.71,187.68,0.68]
[1753530454812,0.53033517,187.7,187.68,0.68]
[1753530455211,0.53033517,187.7,187.66,4.8392929]
[1753530455532,0.53033517,187.7,187.66,0.68]
[1753530455713,5.85803536,187.7,187.67,0.68]
[1753530456028,5.85803536,187.7,187.68,0.69]
[1753530456232,26.0,187.7,187.69,0.69]
[1753530458106,26.0,187.71,187.69,0.69]
[1753530458308,5.85713429,187.73,187.7,0.69]
[1753530458703,5.85713429,187.73,187.71,0.69]
[1753530458933,64.1,187.74,187.71,0.69]
[1753530458934,26.0,187.72,187.71,0.69]
[1753530459107,43.95688566,187.74,187.71,0.69]
[1753530459308,26.0,187.72,187.71,0.69]
[1753530460232,26.0,187.73,187.71,0.69]
[1753530460548,0.53033517,187.75,187.71,0.69]
[1753530460711,4.08074813,187.75,187.72,4.1592929]
[1753530461022,30.08074813,187.75,187.73,0.69]
[1753530461323,26.53033517,187.75,187.73,0.69]
[1753530461933,31.85657074,187.75,187.73,0.69]
[1753530463134,31.85657074,187.75,187.71,4.8492929]
[1753530463327,31.85657074,187.75,187.72,0.69]
[1753530463636,3.55396581,187.74,187.72,0.69]
[1753530464846,3.55396581,187.74,187.73,0.69]
[1753530465214,3.55396581,187.74,187.71,4.1592929]
[1753530465436,3.55396581,187.74,187.72,0.69]
[1753530466027,3.55396581,187.74,187.72,4.8492929]
[1753530467042,3.58396581,187.74,187.72,4.8492929]
[1753530470727,3.58396581,187.74,187.73,0.69]
[1753530470925,3.58396581,187.74,187.72,4.8492929]
[1753530474952,3.58396581,187.74,187.72,0.69]
[1753530475258,3.58396581,187.74,187.72,4.8492929]
[1753530478461,3.58396581,187.74,187.7,0.69]
[1753530478639,4.27396581,187.74,187.72,4.1592929]
[1753530479054,4.27396581,187.74,187.72,4.8492929]
[1753530479055,3.58396581,187.74,187.72,4.8492929]
[1753530479656,3.58396581,187.74,187.73,4.8492929]
[1753530479846,0.03,187.74,187.73,4.8492929]
[1753530480758,34.43820236,187.74,187.68,4.1592929]
[1753530480942,8.93853753,187.73,187.67,4.1592929]
[1753530481146,0.69,187.72,187.66,8.288]
[1753530481340,0.69,187.72,187.67,4.1592929]
[1753530481730,0.53033517,187.71,187.67,4.1592929]
[1753530481936,0.69,187.7,187.67,4.1592929]
[1753530483040,5.8577646,187.71,187.66,8.288]
[1753530483241,0.69,187.69,187.66,10.8931929]
[1753530483986,0.69,187.69,187.64,43.22929074]
[1753530484266,0.69,187.68,187.64,42.7492929]
[1753530484645,1.22033517,187.67,187.64,42.0592929]
[1753530484983,7.71820236,187.7,187.64,42.0592929]
[1753530484984,0.69,187.66,187.64,42.0592929]
[1753530485156,0.69,187.66,187.64,37.9]
[1753530486168,0.69,187.66,187.63,4.1592929]
[1753530486371,0.69,187.66,187.63,4.8492929]
[1753530488457,0.69,187.66,187.63,0.69]
[1753530488769,0.69,187.66,187.63,4.8492929]
[1753530489084,0.69,187.66,187.63,4.9092929]
[1753530489271,6.01879636,187.66,187.63,4.9092929]
[1753530490072,6.01879636,187.66,187.63,0.75]
[1753530490249,6.01879636,187.66,187.63,4.9092929]
[1753530490444,0.69,187.66,187.63,4.9092929]
[1753530492358,0.53033517,187.67,187.64,4.8492929]
[1753530493853,1.24033517,187.67,187.64,0.69]
[1753530494064,1.24033517,187.67,187.64,4.8492929]
[1753530496081,0.53033517,187.67,187.64,4.8492929]
[1753530496388,1.24033517,187.67,187.64,0.69]
[1753530496556,0.71,187.66,187.63,0.06]
[1753530496873,0.71,187.66,187.63,4.2192929]
[1753530497059,0.71,187.65,187.63,0.06]
[1753530497874,0.71,187.66,187.63,0.06]
[1753530498958,1.24033517,187.65,187.63,0.06]
[1753530499359,26.71,187.64,187.63,0.06]
[1753530500067,32.03935408,187.64,187.63,0.06]
[1753530504174,26.0,187.64,187.63,0.06]
[1753530504660,26.0,187.64,187.63,0.75]
[1753530504862,43.12871175,187.67,187.63,0.75]
[1753530504863,0.53033517,187.66,187.63,4.9092929]
[1753530505087,0.53033517,187.66,187.64,0.69]
[1753530505521,5.85915419,187.66,187.63,0.75]
[1753530505879,6.56915419,187.66,187.63,0.75]
[1753530506175,0.53033517,187.66,187.63,4.9092929]
[1753530506392,43.65884281,187.67,187.63,4.2192929]
[1753530506598,43.65884281,187.67,187.64,0.69]
[1753530507100,6.56884281,187.67,187.64,0.69]
[1753530507308,6.56884281,187.67,187.63,0.06]
[1753530507506,0.71,187.66,187.63,0.06]
[1753530507679,0.71,187.66,187.63,0.75]
[1753530508896,5.85884281,187.67,187.63,0.06]
[1753530509100,6.56884281,187.67,187.64,0.69]
[1753530509412,6.56884281,187.67,187.63,0.06]
[1753530509413,0.71,187.66,187.63,0.06]
[1753530510008,0.71,187.65,187.63,0.06]
[1753530511212,1.24033517,187.64,187.63,0.06]
[1753530511500,32.56968925,187.64,187.63,0.06]
[1753530511677,36.72898215,187.64,187.63,0.06]
[1753530516186,74.48898215,187.64,187.63,0.06]
[1753530518783,69.61968925,187.64,187.63,0.06]
[1753530519396,70.27968925,187.64,187.63,0.06]
[1753530519601,91.22366612,187.64,187.63,0.06]
[1753530520189,87.06437322,187.64,187.63,0.06]
[1753530520386,91.22366612,187.64,187.63,0.06]
[1753530520907,91.36582769,187.64,187.63,0.06]
[1753530521805,42.78468397,187.61,187.6,1e-08]
[1753530522013,26.0,187.58,187.57,1e-08]
[1753530522206,75.94160995,187.58,187.57,1e-08]
[1753530522399,93.38629392,187.58,187.57,1e-08]
[1753530524826,74.06068681,187.58,187.57,1e-08]
[1753530525123,69.90139391,187.58,187.57,1e-08]
[1753530525296,74.72068681,187.58,187.57,1e-08]
[1753530530821,70.56139391,187.58,187.57,1e-08]
[1753530531023,36.02068681,187.58,187.57,1e-08]
[1753530531222,74.12068681,187.58,187.57,0.72000001]
[1753530531830,69.96139391,187.58,187.57,0.72000001]
[1753530532210,64.63033517,187.58,187.57,0.72000001]
[1753530532411,64.1,187.58,187.57,0.72000001]
[1753530532911,38.1,187.58,187.57,0.72000001]
[1753530533114,5.86109366,187.6,187.57,0.72000001]
[1753530533115,0.53033517,187.6,187.57,0.72000001]
[1753530533306,38.12,187.59,187.57,0.72000001]
[1753530533912,26.53033517,187.61,187.57,4.87929291]
[1753530534108,38.1,187.6,187.58,0.72]
[1753530534711,26.0,187.58,187.57,1e-08]
[1753530535029,64.12,187.58,187.57,1e-08]
[1753530535227,38.1,187.61,187.57,1e-08]
[1753530535531,38.63033517,187.61,187.57,4.87929291]
[1753530535838,38.63033517,187.61,187.58,0.72]
[1753530536618,38.63033517,187.61,187.58,4.8792929]
[1753530536818,38.1,187.61,187.59,0.72]
[1753530537031,38.63033517,187.62,187.59,0.72]
[1753530537238,38.1,187.62,187.6,4.1592929]
[1753530537417,38.1,187.63,187.61,0.72]
[1753530537737,38.1,187.63,187.62,0.72]
[1753530539255,38.1,187.63,187.6,0.72]
[1753530540438,38.1,187.63,187.61,0.72]
[1753530544120,38.1,187.63,187.62,0.72]
[1753530545146,38.1,187.63,187.6,4.1592929]
[1753530545147,38.1,187.63,187.6,0.72]
[1753530545351,38.1,187.63,187.61,0.72]
[1753530547245,43.87969409,187.64,187.61,0.72]
[1753530547436,44.53969409,187.64,187.59,4.1592929]
[1753530547747,44.53969409,187.64,187.6,0.71]
[1753530548146,0.66,187.63,187.6,0.71]
[1753530549128,0.66,187.62,187.58,4.8692929]
[1753530549442,38.0,187.63,187.59,4.8692929]
[1753530549637,38.66,187.63,187.59,4.8692929]
[1753530549949,38.0,187.63,187.6,0.71]
[1753530550926,38.66,187.63,187.6,0.71]
[1753530551334,38.0,187.63,187.6,0.71]
[1753530552127,38.0,187.63,187.61,0.71]
[1753530553138,38.66,187.63,187.59,4.8692929]
[1753530553337,38.66,187.63,187.6,0.71]
[1753530553539,38.0,187.63,187.6,0.71]
[1753530554628,38.0,187.63,187.61,4.8692929]
[1753530554833,64.47033517,187.65,187.61,4.1592929]
[1753530555029,0.03,187.63,187.62,4.8692929]
[1753530555735,0.03,187.63,187.62,11.5110929]
[1753530556835,0.03,187.63,187.62,16.84101508]
[1753530557729,0.03,187.63,187.62,17.12533822]
[1753530558144,0.03,187.63,187.62,33.91002219]
[1753530559331,0.03,187.63,187.62,34.4430144]
[1753530559530,0.03,187.63,187.62,72.3430144]
[1753530562435,0.03,187.63,187.62,159.7430144]
[1753530562637,0.03,187.63,187.62,159.21002219]
[1753530566958,0.03,187.63,187.62,121.31002219]
[1753530567183,0.03,187.63,187.62,159.13002219]
[1753530567463,0.03,187.63,187.62,185.13002219]
[1753530568042,0.03,187.67,187.62,198.45482764]
[1753530568242,0.03,187.67,187.66,4.44361604]
[1753530568557,0.03,187.67,187.66,146.42830001]
[1753530568763,0.03,187.67,187.66,59.73830001]
[1753530568967,0.03,187.67,187.66,60.27117862]
[1753530569303,0.03,187.67,187.66,65.59996472]
[1753530574396,0.03,187.67,187.66,152.99996472]
[1753530574684,0.69,187.7,187.69,17.06900711]
[1753530574897,0.69,187.7,187.69,63.70038634]
[1753530575194,0.69,187.7,187.69,151.10038634]
[1753530575491,0.69,187.7,187.69,150.56759291]
[1753530576156,0.69,187.7,187.67,5.32845307]
[1753530576354,0.69,187.7,187.68,41.9392929]
[1753530576757,0.69,187.7,187.68,47.26741907]
[1753530579488,0.69,187.7,187.69,4.1592929]
[1753530580262,0.69,187.7,187.68,43.10812617]
[1753530580482,0.69,187.7,187.69,4.1592929]
[1753530581773,0.69,187.7,187.69,9.48722725]
[1753530583298,0.69,187.7,187.69,30.71552726]
[1753530584571,0.69,187.7,187.69,26.55623436]
[1753530584873,0.03,187.7,187.69,26.55623436]
[1753530586170,0.03,187.7,187.69,9.77155039]
[1753530586776,0.03,187.7,187.69,4.1592929]
[1753530586977,0.03,187.7,187.69,41.9392929]
[1753530591668,0.03,187.7,187.69,47.26722725]
[1753530592291,0.03,187.7,187.69,37.78]
[1753530592478,0.03,187.7,187.69,41.9392929]
[1753530592888,0.03,187.7,187.69,37.78]
[1753530593075,0.03,187.7,187.69,41.9392929]
[1753530595073,0.03,187.7,187.69,47.97722725]
[1753530595401,0.03,187.7,187.69,42.6492929]
[1753530595581,0.03,187.7,187.69,41.9392929]
[1753530596382,0.03,187.7,187.69,42.6492929]
[1753530596880,0.03,187.7,187.69,47.97722725]
[1753530597492,0.03,187.7,187.69,38.49]
[1753530597678,0.03,187.7,187.69,41.9392929]
[1753530599697,0.03,187.7,187.69,42.6492929]
[1753530600317,0.69,187.7,187.69,37.78]
[1753530600502,0.69,187.7,187.68,37.78]
[1753530600800,0.03,187.7,187.69,4.1592929]
[1753530601299,0.03,187.7,187.68,38.49]
[1753530601300,0.69,187.7,187.68,41.9392929]
[1753530601489,0.69,187.7,187.68,37.78]
[1753530602285,0.69,187.7,187.69,4.1592929]
[1753530602286,0.03,187.7,187.69,4.1592929]
[1753530602487,0.03,187.7,187.69,4.8692929]
[1753530603589,0.03,187.7,187.69,10.19722725]
[1753530606189,0.03,187.7,187.69,41.9392929]
[1753530606490,0.68,187.7,187.69,37.78]
[1753530606690,0.68,187.7,187.69,41.9392929]
[1753530608594,0.03,187.7,187.69,47.95722725]
[1753530610015,0.03,187.7,187.69,65.02623436]
[1753530610230,0.03,187.71,187.7,6.3074]
[1753530610513,0.03,187.74,187.7,119.78499291]
[1753530610718,0.03,187.74,187.73,4.44361604]
[1753530610900,0.68,187.74,187.73,37.76]
[1753530612414,0.68,187.74,187.73,41.9192929]
[1753530615318,0.03,187.74,187.73,41.9192929]
[1753530615503,0.03,187.74,187.73,47.24609202]
[1753530615705,0.03,187.74,187.73,47.93609202]
[1753530618399,0.03,187.74,187.73,47.24609202]
[1753530618595,0.68,187.74,187.73,47.24609202]
[1753530619198,0.03,187.74,187.73,47.24609202]
[1753530619398,0.03,187.74,187.73,47.93609202]
[1753530620321,0.03,187.74,187.73,10.17609202]
[1753530620634,0.03,187.74,187.73,47.93609202]
[1753530621222,0.03,187.74,187.73,43.77679912]
[1753530621415,0.68,187.74,187.73,4.1592929]
[1753530621613,0.68,187.74,187.73,37.76]
[1753530622414,0.68,187.74,187.73,41.9192929]
[1753530622728,0.03,187.74,187.73,41.9192929]
[1753530623525,0.03,187.74,187.73,47.93609202]
[1753530624928,0.03,187.74,187.73,47.24609202]
[1753530628226,0.03,187.74,187.73,47.93609202]
[1753530634038,0.03,187.74,187.73,47.24609202]
[1753530635032,0.03,187.74,187.73,47.93609202]
[1753530637939,0.03,187.74,187.73,48.22041516]
[1753530639931,1e-08,187.74,187.73,65.00509913]
[1753530640325,1e-08,187.74,187.73,152.40509913]
[1753530643758,1e-08,187.74,187.73,153.98439913]
[1753530649369,0.03,187.78,187.74,17.06900711]
[1753530649562,0.03,187.78,187.77,21.22830001]
[1753530649733,0.03,187.78,187.77,58.94830001]
[1753530650051,0.03,187.78,187.77,59.63830001]
[1753530651040,0.03,187.78,187.77,147.03830001]
[1753530651351,0.03,187.78,187.77,152.36396438]
[1753530655537,0.03,187.78,187.77,151.67396438]
[1753530655973,0.03,187.78,187.77,113.95396438]
[1753530656270,0.03,187.78,187.77,152.36396438]
[1753530657143,0.03,187.78,187.77,178.36396438]
[1753530662380,0.03,187.82,187.81,17.06900711]
[1753530662557,0.03,187.82,187.81,146.86075302]
[1753530662759,0.71,187.82,187.81,146.32830001]
[1753530663452,0.71,187.82,187.81,151.65283012]
[1753530663866,0.03,187.82,187.81,151.65283012]
[1753530664069,0.03,187.82,187.81,152.34283012]
[1753530664971,0.03,187.82,187.81,154.96435623]
[1753530667572,0.03,187.82,187.81,152.34283012]
[1753530669566,0.03,187.82,187.81,113.95283012]
[1753530669881,0.71,187.82,187.81,134.56382301]
[1753530670082,0.71,187.82,187.81,134.84814615]
[1753530670282,0.71,187.82,187.81,47.16382301]
[1753530670461,0.71,187.82,187.81,47.44814615]
[1753530674687,0.71,187.82,187.81,43.28885325]
[1753530674877,0.71,187.82,187.81,47.44814615]
[1753530675079,0.03,187.82,187.81,47.44814615]
[1753530678293,0.03,187.82,187.81,64.93283012]
[1753530679497,0.03,187.82,187.81,64.23283012]
[1753530680499,0.03,187.82,187.81,64.93283012]
[1753530680792,0.03,187.82,187.81,152.33283012]
[1753530680971,0.03,187.82,187.81,151.63283012]
[1753530684696,0.71,187.82,187.81,87.4]
[1753530684905,0.71,187.82,187.81,125.06]
[1753530685609,0.71,187.82,187.81,130.38453011]
[1753530686803,0.71,187.82,187.81,37.66]
[1753530689449,0.71,187.82,187.81,42.98453011]
[1753530689629,0.03,187.82,187.81,47.42814615]
[1753530691705,0.71,187.82,187.81,47.42814615]
[1753530692489,0.03,187.82,187.81,47.42814615]
[1753530692704,0.03,187.82,187.81,134.82814615]
[1753530693327,0.03,187.82,187.81,151.61283012]
[1753530693534,0.03,187.82,187.81,152.31283012]
[1753530702318,0.03,187.82,187.81,151.61283012]
[1753530704315,0.03,187.82,187.81,96.88382301]
[1753530704316,0.72,187.82,187.81,96.88382301]
[1753530704620,0.72,187.82,187.81,47.12382301]
[1753530707337,0.03,187.82,187.81,47.40814615]
[1753530707520,0.03,187.82,187.81,65.37528313]
[1753530709228,0.03,187.84,187.83,26.0]
[1753530709542,0.03,187.84,187.83,68.61601235]
[1753530709733,0.03,187.84,187.83,69.26601235]
[1753530710737,0.03,187.84,187.83,74.5899755]
[1753530713369,0.03,187.84,187.83,161.9899755]
[1753530713521,0.03,187.84,187.83,161.45757919]
[1753530718249,1e-08,187.85,187.84,17.06900711]
[1753530718545,0.03,187.88,187.84,22.41066798]
[1753530718850,0.03,187.88,187.87,26.55112962]
[1753530719146,0.03,187.88,187.87,64.70341258]
[1753530719325,0.03,187.88,187.87,65.35341258]
[1753530720030,0.03,187.88,187.87,152.75341258]
[1753530720232,0.03,187.88,187.87,152.22112962]
[1753530720430,0.72,187.88,187.87,87.4]
[1753530720634,0.72,187.88,187.87,130.32282961]
[1753530722245,0.72,187.88,187.87,134.76644565]
[1753530722951,0.72,187.88,187.87,130.32282961]
[1753530723950,0.03,187.88,187.87,64.80112962]
[1753530724248,0.03,187.88,187.87,65.33341258]
[1753530724946,0.03,187.88,187.87,64.68341258]
[1753530725263,0.03,187.88,187.87,61.17411968]
[1753530725550,0.03,187.88,187.87,65.33341258]
[1753530726037,0.03,187.88,187.87,64.68341258]
[1753530726235,0.03,187.88,187.87,64.15112962]
[1753530726562,0.71,187.88,187.87,42.92282961]
[1753530727153,0.71,187.88,187.87,37.6]
[1753530727349,0.71,187.88,187.87,42.92282961]
[1753530730338,0.71,187.88,187.87,37.6]
[1753530734559,0.03,187.88,187.87,47.08212251]
[1753530735262,0.71,187.88,187.87,47.08212251]
[1753530735437,0.03,187.88,187.87,47.08212251]
[1753530735938,0.03,187.88,187.87,42.92282961]
[1753530738941,0.03,187.88,187.87,47.08212251]
[1753530740360,0.03,187.88,187.87,42.92282961]
[1753530740656,0.03,187.9,187.88,17.06900711]
[1753530740850,1e-08,187.9,187.89,63.21549607]
[1753530741038,1e-08,187.9,187.89,65.03846619]
[1753530744854,0.03,187.91,187.9,16.78468397]
[1753530744855,1e-08,187.91,187.9,16.78468397]
[1753530745046,1e-08,187.91,187.9,25.76326977]
[1753530745455,0.1,187.93,187.92,42.78468397]
[1753530745746,0.1,187.93,187.92,172.4361182]
[1753530746050,0.1,187.97,187.93,16.78468397]
[1753530746258,0.1,187.97,187.95,9.76418001]
[1753530749647,0.1,187.97,187.95,26.54886398]
[1753530750079,0.1,187.97,187.95,22.38957108]
[1753530750282,0.78,187.97,187.95,26.54886398]
[1753530750452,0.71,187.96,187.95,9.76418001]
[1753530750651,0.71,187.96,187.95,47.32418001]
[1753530751780,0.71,187.96,187.95,134.72418001]
[1753530751993,0.71,187.96,187.95,130.56488711]
[1753530752273,0.71,187.96,187.95,134.72418001]
[1753530752777,0.03,187.96,187.95,134.72418001]
[1753530754272,0.03,187.96,187.95,135.38418001]
[1753530755286,0.03,187.96,187.95,134.72418001]
[1753530755465,0.03,187.96,187.95,130.56488711]
[1753530755673,0.71,187.96,187.95,124.94]
[1753530756473,0.71,187.96,187.92,5.32113292]
[1753530756683,0.71,187.96,187.93,37.54]
[1753530758994,0.71,187.96,187.93,42.86105736]
[1753530759881,0.67,187.95,187.93,42.86105736]
[1753530761187,0.03,187.96,187.93,42.86105736]
[1753530761494,0.67,187.94,187.93,37.54]
[1753530764611,0.67,187.94,187.88,0.68]
[1753530764904,0.67,187.94,187.89,37.54]
[1753530765273,4.8292929,187.94,187.89,37.54]
[1753530765474,0.67,187.93,187.89,37.54]
[1753530765695,0.67,187.93,187.88,42.86247811]
[1753530766972,0.67,187.93,187.88,43.54247811]
[1753530767605,1.20033517,187.93,187.88,43.54247811]
[1753530767800,10.68077303,187.93,187.88,37.54]
[1753530768098,0.67,187.92,187.88,37.54]
[1753530768516,0.67,187.92,187.86,47.76217275]
[1753530768879,0.67,187.92,187.87,4.8392929]
[1753530769082,0.67,187.92,187.88,0.68]
[1753530769817,0.53033517,187.93,187.88,0.68]
[1753530770019,0.67,187.91,187.88,0.68]
[1753530770516,0.53033517,187.93,187.9,4.1592929]
[1753530770702,1.551,187.95,187.9,4.1592929]
[1753530770703,0.67,187.95,187.92,4.1592929]
[1753530770882,0.67,187.95,187.92,0.68]
[1753530771077,0.67,187.95,187.92,4.8392929]
[1753530771300,0.03,187.96,187.92,4.8392929]
[1753530771498,0.7,187.96,187.92,4.8392929]
[1753530771897,0.03,187.96,187.92,10.1606127]
[1753530772103,0.67,187.95,187.92,10.1606127]
[1753530772927,0.03,187.96,187.93,4.8392929]
[1753530773218,0.03,187.96,187.87,4.1592929]
[1753530773219,4.1592929,187.94,187.87,4.1592929]
[1753530773521,0.56033517,187.96,187.87,37.54]
[1753530773522,5.35962807,187.93,187.87,37.54]
[1753530773821,0.67,187.92,187.87,37.54]
[1753530774019,0.67,187.91,187.87,43.54282961]
[1753530775111,0.67,187.91,187.88,0.68]
[1753530776110,4.68962807,187.93,187.87,42.86282961]
[1753530776111,0.67,187.9,187.87,42.86282961]